[Event "Live Chess"]
[Site "Chess.com"]
[Date "2024.06.01"]
[Round "-"]
[White "Yarigo"]
[Black "Queensandpawns"]
[Result "1-0"]
[WhiteElo "2413"]
[BlackElo "2467"]
[TimeControl "300"]
[EndTime "10:35:31 PDT"]
[Termination "Yarigo won by resignation"]

1. d4 {[%clk 0:04:54.2]} 1... Nc6 {[%clk 0:04:58.6]} 2. d5 {[%clk 0:04:51.1]}
2... Ne5 {[%clk 0:04:57.3]} 3. e4 {[%clk 0:04:50.2]} 3... e6 {[%clk 0:04:55.3]}
4. f4 {[%clk 0:04:48.5]} 4... Ng6 {[%clk 0:04:53.9]} 5. dxe6 {[%clk 0:04:47.5]}
5... fxe6 {[%clk 0:04:52.8]} 6. Nf3 {[%clk 0:04:45.7]} 6... Nf6 {[%clk
0:04:52.3]} 7. Bd3 {[%clk 0:04:43.1]} 7... Bc5 {[%clk 0:04:50.8]} 8. Qe2 {[%clk
0:04:39.1]} 8... O-O {[%clk 0:04:49.1]} 9. Be3 {[%clk 0:04:34.3]} 9... Bxe3
{[%clk 0:04:47.3]} 10. Qxe3 {[%clk 0:04:33.2]} 10... Ng4 {[%clk 0:04:47.2]} 11.
Qd2 {[%clk 0:04:28.3]} 11... Nxf4 {[%clk 0:04:46.5]} 12. Nc3 {[%clk 0:04:24.8]}
12... Ne3 {[%clk 0:04:39.1]} 13. Rg1 {[%clk 0:04:15.9]} 13... Nfxg2+ {[%clk
0:04:29.8]} 14. Rxg2 {[%clk 0:04:12.1]} 14... Rxf3 {[%clk 0:04:28.1]} 15. Rf2
{[%clk 0:03:42.9]} 15... Qh4 {[%clk 0:04:19.3]} 16. Qe2 {[%clk 0:03:29.3]} 16...
Rxf2 {[%clk 0:03:37.6]} 17. Qxf2 {[%clk 0:03:26.4]} 17... Qxf2+ {[%clk
0:03:37.5]} 18. Kxf2 {[%clk 0:03:24.9]} 18... Ng4+ {[%clk 0:03:37.4]} 19. Kg3
{[%clk 0:03:22.2]} 19... Ne5 {[%clk 0:03:35.2]} 20. Nb5 {[%clk 0:03:16.9]} 20...
c5 {[%clk 0:03:25.4]} 21. Rd1 {[%clk 0:02:54.3]} 21... d5 {[%clk 0:03:21.5]} 22.
Be2 {[%clk 0:02:42.4]} 22... d4 {[%clk 0:03:15.1]} 23. c3 {[%clk 0:02:38.1]}
23... d3 {[%clk 0:02:50.5]} 24. Bxd3 {[%clk 0:02:35.6]} 24... Bd7 {[%clk
0:02:50.4]} 25. Be2 {[%clk 0:02:02]} 25... Bc6 {[%clk 0:02:34.3]} 26. Nc7 {[%clk
0:01:53.4]} 26... Rc8 {[%clk 0:02:31.5]} 27. Nxe6 {[%clk 0:01:52]} 27... Bxe4
{[%clk 0:02:31.1]} 28. Kf4 {[%clk 0:01:47.5]} 28... Re8 {[%clk 0:01:07.6]} 29.
Kxe5 {[%clk 0:01:37.5]} 29... Bc6 {[%clk 0:00:59.2]} 30. Rf1 {[%clk 0:01:28.6]}
30... Bd7 {[%clk 0:00:38.9]} 31. Bc4 {[%clk 0:01:26]} 31... b5 {[%clk
0:00:37.3]} 32. Bd5 {[%clk 0:01:24.7]} 32... a5 {[%clk 0:00:26.5]} 33. Kd6
{[%clk 0:01:21.9]} 33... Bxe6 {[%clk 0:00:17.1]} 34. Bxe6+ {[%clk 0:01:20.1]}
34... Kh8 {[%clk 0:00:17]} 35. Bd7 {[%clk 0:01:19.3]} 35... Rd8 {[%clk
0:00:15.5]} 36. Kc7 {[%clk 0:00:51.8]} 36... Rb8 {[%clk 0:00:14.7]} 37. Kxb8
{[%clk 0:00:49.4]} 1-0

[Event "Live Chess"]
[Site "Chess.com"]
[Date "2024.06.01"]
[Round "-"]
[White "degringolade64"]
[Black "ChessRobinThePro"]
[Result "0-1"]
[WhiteElo "2047"]
[BlackElo "1782"]
[TimeControl "300"]
[EndTime "10:35:48 PDT"]
[Termination "ChessRobinThePro won by resignation"]

1. e4 {[%clk 0:04:56.6]} 1... e5 {[%clk 0:04:49.5]} 2. Nf3 {[%clk 0:04:54.8]}
2... d5 {[%clk 0:04:43.9]} 3. Nxe5 {[%clk 0:04:48.6]} 3... dxe4 {[%clk 0:04:39]}
4. Bc4 {[%clk 0:04:46.3]} 4... Qf6 {[%clk 0:04:16.9]} 5. d4 {[%clk 0:04:22.4]}
5... Be6 {[%clk 0:03:59.6]} 6. Bxe6 {[%clk 0:04:17.1]} 6... Qxe6 {[%clk
0:03:53]} 7. O-O {[%clk 0:04:13.1]} 7... Nf6 {[%clk 0:03:51.3]} 8. Nc3 {[%clk
0:04:05.9]} 8... Be7 {[%clk 0:03:45.6]} 9. Re1 {[%clk 0:04:02.1]} 9... O-O
{[%clk 0:03:43.4]} 10. Bg5 {[%clk 0:03:48.4]} 10... Nbd7 {[%clk 0:03:35.9]} 11.
Nxd7 {[%clk 0:03:45.7]} 11... Qxd7 {[%clk 0:03:30.8]} 12. Bxf6 {[%clk
0:03:35.4]} 12... Bxf6 {[%clk 0:03:29.1]} 13. Nxe4 {[%clk 0:03:34.5]} 13... Qxd4
{[%clk 0:03:23.4]} 14. Qf3 {[%clk 0:03:02.3]} 14... Rfe8 {[%clk 0:02:59.1]} 15.
c3 {[%clk 0:02:59.4]} 15... Qe5 {[%clk 0:02:48.1]} 16. Nxf6+ {[%clk 0:02:55.4]}
16... Qxf6 {[%clk 0:02:46.9]} 17. Qxb7 {[%clk 0:02:50.4]} 17... Qb6 {[%clk
0:02:34.9]} 18. Qxb6 {[%clk 0:02:38.6]} 18... axb6 {[%clk 0:02:33.6]} 19. a3
{[%clk 0:02:37]} 19... Kf8 {[%clk 0:02:31.5]} 20. g4 {[%clk 0:02:32.1]} 20...
Rad8 {[%clk 0:02:30.2]} 21. Rad1 {[%clk 0:02:27.1]} 21... Rxe1+ {[%clk
0:02:26.8]} 22. Rxe1 {[%clk 0:02:25.9]} 22... Rd2 {[%clk 0:02:25.6]} 23. Rb1
{[%clk 0:02:01.6]} 23... Ke7 {[%clk 0:02:23.1]} 24. Kg2 {[%clk 0:02:00.6]} 24...
Kd6 {[%clk 0:02:21.5]} 25. a4 {[%clk 0:01:57.4]} 25... f6 {[%clk 0:02:14.2]} 26.
Kg3 {[%clk 0:01:55.8]} 26... Kd5 {[%clk 0:02:10.7]} 27. f3 {[%clk 0:01:53.7]}
27... Kc4 {[%clk 0:02:06.6]} 28. b4 {[%clk 0:01:30.9]} 28... Kxc3 {[%clk
0:02:01.9]} 29. Rc1+ {[%clk 0:01:29.7]} 29... Kxb4 {[%clk 0:02:00.9]} 30. Rxc7
{[%clk 0:01:28.3]} 30... Kxa4 {[%clk 0:01:59]} 31. Rxg7 {[%clk 0:01:27.2]} 31...
b5 {[%clk 0:01:58]} 32. Rxh7 {[%clk 0:01:26.2]} 32... b4 {[%clk 0:01:57.1]} 33.
Rb7 {[%clk 0:01:25.5]} 33... b3 {[%clk 0:01:54.2]} 34. h4 {[%clk 0:01:25]} 34...
b2 {[%clk 0:01:50.7]} 35. g5 {[%clk 0:01:24.1]} 35... fxg5 {[%clk 0:01:49]} 36.
hxg5 {[%clk 0:01:24]} 36... Ka3 {[%clk 0:01:44]} 37. Kg4 {[%clk 0:01:20.9]}
37... Rd4+ {[%clk 0:01:36.4]} 38. Kf5 {[%clk 0:01:16.3]} 38... Rb4 {[%clk
0:01:35.2]} 39. Ra7+ {[%clk 0:01:13.7]} 39... Kb3 {[%clk 0:01:33.4]} 40. g6
{[%clk 0:01:08]} 40... b1=Q+ {[%clk 0:01:31]} 41. Kf6 {[%clk 0:01:06.7]} 41...
Rb6+ {[%clk 0:01:28.4]} 0-1

[Event "Live Chess"]
[Site "Chess.com"]
[Date "2024.06.01"]
[Round "-"]
[White "ProfPoisson"]
[Black "Rusty_Bridges"]
[Result "0-1"]
[WhiteElo "1241"]
[BlackElo "1499"]
[TimeControl "300"]
[EndTime "10:35:49 PDT"]
[Termination "Rusty_Bridges won by checkmate"]

1. e4 {[%clk 0:04:56.3]} 1... d6 {[%clk 0:04:58.4]} 2. Nc3 {[%clk 0:04:53]} 2...
Nf6 {[%clk 0:04:57.8]} 3. f4 {[%clk 0:04:49.7]} 3... Nbd7 {[%clk 0:04:56.6]} 4.
Bc4 {[%clk 0:04:48.2]} 4... h6 {[%clk 0:04:54.9]} 5. Nf3 {[%clk 0:04:46]} 5...
e5 {[%clk 0:04:53.9]} 6. fxe5 {[%clk 0:04:43.4]} 6... dxe5 {[%clk 0:04:52.8]} 7.
O-O {[%clk 0:04:40.6]} 7... Bc5+ {[%clk 0:04:50.3]} 8. d4 {[%clk 0:04:37.8]}
8... exd4 {[%clk 0:04:47.7]} 9. Nxd4 {[%clk 0:04:34.6]} 9... Ne5 {[%clk
0:04:45.2]} 10. Bb3 {[%clk 0:04:25.7]} 10... Bxd4+ {[%clk 0:04:42.9]} 11. Kh1
{[%clk 0:04:14.9]} 11... Bxc3 {[%clk 0:04:40.8]} 12. bxc3 {[%clk 0:04:02.4]}
12... Qxd1 {[%clk 0:04:37.3]} 13. Rxd1 {[%clk 0:04:01.2]} 13... O-O {[%clk
0:04:36.1]} 14. Ba3 {[%clk 0:03:53]} 14... Re8 {[%clk 0:04:28.9]} 15. Rd2 {[%clk
0:03:47.4]} 15... Be6 {[%clk 0:04:25.4]} 16. Bxe6 {[%clk 0:03:39.9]} 16... Rxe6
{[%clk 0:04:21.7]} 17. Rad1 {[%clk 0:03:35]} 17... Nc4 {[%clk 0:04:17.8]} 18.
Rd8+ {[%clk 0:03:24]} 18... Rxd8 {[%clk 0:04:15.8]} 19. Rxd8+ {[%clk 0:03:22.6]}
19... Re8 {[%clk 0:04:12.6]} 20. Rxe8+ {[%clk 0:03:17.3]} 20... Nxe8 {[%clk
0:04:11.6]} 21. Bb4 {[%clk 0:03:15.2]} 21... Nf6 {[%clk 0:04:08.1]} 22. g3
{[%clk 0:03:13.4]} 22... Nxe4 {[%clk 0:04:06.8]} 23. Kg2 {[%clk 0:03:11.9]}
23... f5 {[%clk 0:04:04.1]} 24. Kf3 {[%clk 0:03:10.4]} 24... Kf7 {[%clk
0:04:02.2]} 25. g4 {[%clk 0:03:08.3]} 25... g6 {[%clk 0:03:59.6]} 26. gxf5
{[%clk 0:03:03.8]} 26... gxf5 {[%clk 0:03:57.7]} 27. h4 {[%clk 0:03:03.7]} 27...
Ke6 {[%clk 0:03:55.7]} 28. Kf4 {[%clk 0:03:01.7]} 28... b6 {[%clk 0:03:51.3]}
29. Bf8 {[%clk 0:03:00.3]} 29... Nxc3 {[%clk 0:03:44.9]} 30. Bxh6 {[%clk
0:02:58.4]} 30... Nxa2 {[%clk 0:03:43.9]} 31. Bg7 {[%clk 0:02:55.8]} 31... Nd6
{[%clk 0:03:40.7]} 32. h5 {[%clk 0:02:54.5]} 32... Nf7 {[%clk 0:03:39.7]} 33. h6
{[%clk 0:02:50]} 33... Nb4 {[%clk 0:03:32.4]} 34. h7 {[%clk 0:02:48.4]} 34...
Nd5+ {[%clk 0:03:30.2]} 35. Kf3 {[%clk 0:02:39.6]} 35... a5 {[%clk 0:03:23.7]}
36. h8=Q {[%clk 0:02:37.3]} 36... Nxh8 {[%clk 0:03:21.9]} 37. Bxh8 {[%clk
0:02:36.8]} 37... c5 {[%clk 0:03:18.6]} 38. Ke2 {[%clk 0:02:35.4]} 38... b5
{[%clk 0:03:17.4]} 39. Kd2 {[%clk 0:02:34.1]} 39... b4 {[%clk 0:03:16.3]} 40.
Kc1 {[%clk 0:02:29.4]} 40... a4 {[%clk 0:03:15.4]} 41. Kb1 {[%clk 0:02:26.8]}
41... a3 {[%clk 0:03:14.6]} 42. Ka2 {[%clk 0:02:24.4]} 42... f4 {[%clk
0:03:13.8]} 43. c3 {[%clk 0:02:11.8]} 43... Nxc3+ {[%clk 0:03:11.7]} 44. Kb3
{[%clk 0:02:05.4]} 44... a2 {[%clk 0:03:09.5]} 45. Kb2 {[%clk 0:02:01.5]} 45...
f3 {[%clk 0:03:05.8]} 46. Kb3 {[%clk 0:01:46.3]} 46... a1=Q {[%clk 0:02:58.3]}
47. Bd4 {[%clk 0:01:44.7]} 47... Qa2# {[%clk 0:02:57.1]} 0-1

[Event "Live Chess"]
[Site "Chess.com"]
[Date "2024.06.01"]
[Round "-"]
[White "TC2304"]
[Black "CarmelJane"]
[Result "1-0"]
[WhiteElo "2333"]
[BlackElo "2103"]
[TimeControl "300"]
[EndTime "10:35:53 PDT"]
[Termination "TC2304 won by resignation"]

1. a4 {[%clk 0:04:57.9]} 1... e5 {[%clk 0:04:54.7]} 2. a5 {[%clk 0:04:57.4]}
2... a6 {[%clk 0:04:53.2]} 3. e3 {[%clk 0:04:56.9]} 3... d5 {[%clk 0:04:50]} 4.
d4 {[%clk 0:04:56.5]} 4... exd4 {[%clk 0:04:36]} 5. exd4 {[%clk 0:04:56.4]} 5...
Nf6 {[%clk 0:04:34.7]} 6. Nf3 {[%clk 0:04:55.9]} 6... Bg4 {[%clk 0:04:32.2]} 7.
Nbd2 {[%clk 0:04:54.5]} 7... Bd6 {[%clk 0:04:26.9]} 8. h3 {[%clk 0:04:53.4]}
8... Bh5 {[%clk 0:04:25.3]} 9. Bd3 {[%clk 0:04:40]} 9... O-O {[%clk 0:04:06.4]}
10. O-O {[%clk 0:04:39.1]} 10... c5 {[%clk 0:03:54.9]} 11. c3 {[%clk 0:04:24.2]}
11... cxd4 {[%clk 0:03:47.6]} 12. cxd4 {[%clk 0:04:22.7]} 12... Nc6 {[%clk
0:03:47.1]} 13. Nb3 {[%clk 0:04:21.3]} 13... Nb4 {[%clk 0:03:38]} 14. Be2 {[%clk
0:04:16.5]} 14... Bg6 {[%clk 0:03:28]} 15. Bg5 {[%clk 0:04:10.6]} 15... Bc2
{[%clk 0:03:24.3]} 16. Qd2 {[%clk 0:03:47]} 16... Bxb3 {[%clk 0:03:22.7]} 17.
Ne5 {[%clk 0:03:46]} 17... Nc6 {[%clk 0:02:16.5]} 18. Ra3 {[%clk 0:03:35.2]}
18... Bc4 {[%clk 0:02:09.3]} 19. Nxc4 {[%clk 0:03:25.1]} 19... dxc4 {[%clk
0:02:05.9]} 20. Rf3 {[%clk 0:03:22.5]} 20... Qxa5 {[%clk 0:02:00.7]} 21. Qc1
{[%clk 0:02:53.1]} 21... Ne4 {[%clk 0:01:53.5]} 22. Be3 {[%clk 0:02:48.1]} 22...
c3 {[%clk 0:01:48.3]} 23. Bd3 {[%clk 0:02:42.7]} 23... cxb2 {[%clk 0:01:37.8]}
24. Qxb2 {[%clk 0:02:38]} 24... Qc3 {[%clk 0:01:17.6]} 25. Qxb7 {[%clk
0:02:32.1]} 25... Qxd3 {[%clk 0:01:14.9]} 26. Qxc6 {[%clk 0:02:27.4]} 26... Rac8
{[%clk 0:01:13.7]} 27. Qb7 {[%clk 0:02:21.6]} 27... Qb5 {[%clk 0:01:12.1]} 28.
Qxe4 {[%clk 0:02:19.6]} 28... a5 {[%clk 0:00:56.7]} 29. Qg4 {[%clk 0:02:19.1]}
29... Qd3 {[%clk 0:00:49.2]} 30. Rf5 {[%clk 0:02:07.9]} 30... a4 {[%clk
0:00:32]} 31. Bh6 {[%clk 0:02:03.7]} 31... g6 {[%clk 0:00:31.4]} 32. Rd5 {[%clk
0:02:03.2]} 32... Be7 {[%clk 0:00:27.5]} 33. Bxf8 {[%clk 0:02:00.9]} 33... Bxf8
{[%clk 0:00:27.4]} 34. Qxc8 {[%clk 0:01:59.5]} 1-0

[Event "Live Chess"]
[Site "Chess.com"]
[Date "2024.06.01"]
[Round "-"]
[White "Sacbutt"]
[Black "chessfiction"]
[Result "1-0"]
[WhiteElo "2376"]
[BlackElo "2421"]
[TimeControl "300"]
[EndTime "10:35:53 PDT"]
[Termination "Sacbutt won by resignation"]

1. e4 {[%clk 0:04:58.9]} 1... d6 {[%clk 0:04:57.5]} 2. d4 {[%clk 0:04:57.8]}
2... Nf6 {[%clk 0:04:56.2]} 3. Nc3 {[%clk 0:04:57.2]} 3... c6 {[%clk 0:04:55.6]}
4. Be2 {[%clk 0:04:56.2]} 4... Qc7 {[%clk 0:04:39.8]} 5. Be3 {[%clk 0:04:53]}
5... e5 {[%clk 0:04:39.1]} 6. g4 {[%clk 0:04:45]} 6... Be7 {[%clk 0:04:37]} 7.
g5 {[%clk 0:04:41.9]} 7... Nfd7 {[%clk 0:04:35.6]} 8. h4 {[%clk 0:04:41.5]} 8...
Nb6 {[%clk 0:04:34.4]} 9. h5 {[%clk 0:04:36.7]} 9... Na6 {[%clk 0:04:23.1]} 10.
Qd2 {[%clk 0:04:16.3]} 10... Be6 {[%clk 0:04:19.4]} 11. f4 {[%clk 0:04:07]}
11... exf4 {[%clk 0:04:06.7]} 12. Bxf4 {[%clk 0:04:06.9]} 12... Nc4 {[%clk
0:03:59.4]} 13. Qc1 {[%clk 0:04:01.6]} 13... b5 {[%clk 0:03:57.3]} 14. d5 {[%clk
0:03:52.2]} 14... Bd7 {[%clk 0:03:53.3]} 15. dxc6 {[%clk 0:03:37.7]} 15... Bxc6
{[%clk 0:03:53.2]} 16. Nf3 {[%clk 0:03:23.8]} 16... O-O {[%clk 0:03:50]} 17. g6
{[%clk 0:03:11]} 17... fxg6 {[%clk 0:03:45.3]} 18. hxg6 {[%clk 0:03:10]} 18...
hxg6 {[%clk 0:03:41.4]} 19. Bxc4+ {[%clk 0:02:46.7]} 19... bxc4 {[%clk
0:03:27.5]} 20. Qd2 {[%clk 0:02:46.1]} 20... Rab8 {[%clk 0:03:21.3]} 21. Nd5
{[%clk 0:02:17.3]} 21... Bxd5 {[%clk 0:03:18.8]} 22. Qxd5+ {[%clk 0:02:14.4]}
22... Rf7 {[%clk 0:03:17.9]} 23. O-O-O {[%clk 0:01:56.7]} 23... Qb7 {[%clk
0:03:09.1]} 24. Rh8+ {[%clk 0:01:40.7]} 24... Kxh8 {[%clk 0:02:55.6]} 25. Qxf7
{[%clk 0:01:40.6]} 25... Qxb2+ {[%clk 0:02:50.3]} 26. Kd2 {[%clk 0:01:39.6]}
26... Bh4 {[%clk 0:02:28.4]} 27. Rh1 {[%clk 0:01:25.7]} 27... g5 {[%clk
0:02:27.1]} 28. Bxg5 {[%clk 0:01:17.9]} 1-0

[Event "Live Chess"]
[Site "Chess.com"]
[Date "2024.06.01"]
[Round "-"]
[White "Hazban"]
[Black "DoctorMantisTobogganMD"]
[Result "1-0"]
[WhiteElo "2051"]
[BlackElo "2188"]
[TimeControl "300"]
[EndTime "10:35:57 PDT"]
[Termination "Hazban won by resignation"]

1. d4 {[%clk 0:04:57.5]} 1... Nf6 {[%clk 0:04:59]} 2. Nc3 {[%clk 0:04:56.1]}
2... c6 {[%clk 0:04:57.9]} 3. e4 {[%clk 0:04:54]} 3... d5 {[%clk 0:04:57.2]} 4.
exd5 {[%clk 0:04:49.8]} 4... cxd5 {[%clk 0:04:56.2]} 5. Bf4 {[%clk 0:04:48.9]}
5... a6 {[%clk 0:04:54.6]} 6. Nf3 {[%clk 0:04:46.2]} 6... Nc6 {[%clk 0:04:53.9]}
7. h3 {[%clk 0:04:42.6]} 7... Bf5 {[%clk 0:04:52.6]} 8. Bd3 {[%clk 0:04:38]}
8... Bg6 {[%clk 0:04:51.8]} 9. O-O {[%clk 0:04:35.4]} 9... e6 {[%clk 0:04:51]}
10. Re1 {[%clk 0:04:31.1]} 10... Be7 {[%clk 0:04:49.6]} 11. a3 {[%clk 0:04:24]}
11... Rc8 {[%clk 0:04:48.7]} 12. Ne2 {[%clk 0:04:18.4]} 12... b5 {[%clk
0:04:44.3]} 13. Ng3 {[%clk 0:04:17.1]} 13... Na5 {[%clk 0:04:33.9]} 14. Qe2
{[%clk 0:04:07.8]} 14... Nc4 {[%clk 0:04:31.1]} 15. b3 {[%clk 0:04:03]} 15...
Nd6 {[%clk 0:04:29.7]} 16. Ne5 {[%clk 0:03:59]} 16... Bxd3 {[%clk 0:04:06.9]}
17. cxd3 {[%clk 0:03:51.9]} 17... h6 {[%clk 0:04:00]} 18. Nxf7 {[%clk
0:03:43.9]} 18... Kxf7 {[%clk 0:03:58.8]} 19. Qxe6+ {[%clk 0:03:42.9]} 19... Kf8
{[%clk 0:03:58.2]} 20. Re2 {[%clk 0:03:40]} 20... Qd7 {[%clk 0:03:56.3]} 21.
Rae1 {[%clk 0:03:29.2]} 21... Qxe6 {[%clk 0:03:55.3]} 22. Rxe6 {[%clk
0:03:27.9]} 22... Re8 {[%clk 0:03:43.4]} 23. Nh5 {[%clk 0:03:16.1]} 23... Nxh5
{[%clk 0:03:37.7]} 24. Bxd6 {[%clk 0:03:15.1]} 24... Nf6 {[%clk 0:03:24.7]} 25.
Rxe7 {[%clk 0:03:07.2]} 25... Rxe7 {[%clk 0:03:20.4]} 26. Bxe7+ {[%clk
0:03:00.1]} 26... Kf7 {[%clk 0:03:19.2]} 27. Bxf6 {[%clk 0:02:52.7]} 27... Kxf6
{[%clk 0:03:19.1]} 28. Re5 {[%clk 0:02:51.2]} 28... Rc8 {[%clk 0:03:10.8]} 29.
Rxd5 {[%clk 0:02:49.2]} 29... Rc3 {[%clk 0:03:10.2]} 30. Rd6+ {[%clk 0:02:47.1]}
30... Kf7 {[%clk 0:03:09.6]} 31. Rxa6 {[%clk 0:02:46.2]} 31... Rxd3 {[%clk
0:03:06.3]} 32. b4 {[%clk 0:02:42.6]} 32... Rxd4 {[%clk 0:03:04.8]} 33. Rb6
{[%clk 0:02:40]} 33... Rd3 {[%clk 0:03:04]} 34. Rxb5 {[%clk 0:02:38.5]} 34...
Rxa3 {[%clk 0:03:03.6]} 35. Rb7+ {[%clk 0:02:37.5]} 35... Kf6 {[%clk 0:03:02.3]}
36. Kh2 {[%clk 0:02:36.7]} 36... Rb3 {[%clk 0:02:59.2]} 37. b5 {[%clk
0:02:35.8]} 37... g5 {[%clk 0:02:55.3]} 38. Rb8 {[%clk 0:02:34.2]} 38... h5
{[%clk 0:02:52.4]} 39. b6 {[%clk 0:02:32.3]} 39... h4 {[%clk 0:02:50.6]} 40. b7
{[%clk 0:02:31]} 40... Kf7 {[%clk 0:02:47.6]} 41. Rh8 {[%clk 0:02:29.4]} 1-0

[Event "Live Chess"]
[Site "Chess.com"]
[Date "2024.06.01"]
[Round "-"]
[White "updatedopenings2024"]
[Black "Ninifu"]
[Result "1-0"]
[WhiteElo "1834"]
[BlackElo "2026"]
[TimeControl "300"]
[EndTime "10:35:58 PDT"]
[Termination "updatedopenings2024 won by resignation"]

1. e4 {[%clk 0:04:58.5]} 1... d5 {[%clk 0:04:58.8]} 2. exd5 {[%clk 0:04:58.4]}
2... Nf6 {[%clk 0:04:57.6]} 3. Nf3 {[%clk 0:04:58.3]} 3... Bg4 {[%clk
0:04:55.4]} 4. d4 {[%clk 0:04:58.2]} 4... Qxd5 {[%clk 0:04:53.6]} 5. Be2 {[%clk
0:04:57.7]} 5... Nc6 {[%clk 0:04:52.1]} 6. c4 {[%clk 0:04:56.7]} 6... Qf5 {[%clk
0:04:50.1]} 7. Nc3 {[%clk 0:04:56.2]} 7... O-O-O {[%clk 0:04:48.4]} 8. Be3
{[%clk 0:04:55.9]} 8... e5 {[%clk 0:04:41]} 9. d5 {[%clk 0:04:54.5]} 9... Nb4
{[%clk 0:04:39.8]} 10. Rc1 {[%clk 0:04:51.1]} 10... e4 {[%clk 0:04:23.6]} 11.
Nd4 {[%clk 0:04:43.5]} 11... Bxe2 {[%clk 0:04:15.7]} 12. Qxe2 {[%clk 0:04:43.4]}
12... Qe5 {[%clk 0:04:09.4]} 13. O-O {[%clk 0:04:40.4]} 13... Bd6 {[%clk
0:04:03.2]} 14. g3 {[%clk 0:04:35.8]} 14... h5 {[%clk 0:03:47]} 15. Ndb5 {[%clk
0:04:31]} 15... h4 {[%clk 0:03:41.8]} 16. Bf4 {[%clk 0:04:24.5]} 16... Qf5
{[%clk 0:03:31.4]} 17. Bxd6 {[%clk 0:04:04.8]} 17... cxd6 {[%clk 0:03:27.8]} 18.
Nxa7+ {[%clk 0:03:54]} 18... Kb8 {[%clk 0:03:25.5]} 19. Nab5 {[%clk 0:03:53.9]}
19... Qh3 {[%clk 0:03:13.9]} 20. Nxe4 {[%clk 0:03:20.4]} 20... Ng4 {[%clk
0:03:08.4]} 21. f3 {[%clk 0:03:16.7]} 21... hxg3 {[%clk 0:03:07.6]} 22. fxg4
{[%clk 0:03:14.9]} 22... gxh2+ {[%clk 0:02:55.9]} 23. Kh1 {[%clk 0:03:12.8]}
23... Rhe8 {[%clk 0:02:03.8]} 24. Nbc3 {[%clk 0:02:59.5]} 24... g6 {[%clk
0:01:49.7]} 25. Qg2 {[%clk 0:02:56.5]} 25... Qd3 {[%clk 0:00:54.7]} 26. Qg3
{[%clk 0:02:21.2]} 26... Qxc4 {[%clk 0:00:40.2]} 27. Nxd6 {[%clk 0:02:14.9]}
27... Qc7 {[%clk 0:00:28.5]} 28. Ncb5 {[%clk 0:02:11.4]} 1-0

[Event "Live Chess"]
[Site "Chess.com"]
[Date "2024.06.01"]
[Round "-"]
[White "LaupMiths"]
[Black "bill77678"]
[Result "0-1"]
[WhiteElo "1835"]
[BlackElo "1828"]
[TimeControl "300"]
[EndTime "10:36:11 PDT"]
[Termination "bill77678 won by checkmate"]

1. Nf3 {[%clk 0:04:55.5]} 1... d5 {[%clk 0:04:58.7]} 2. g3 {[%clk 0:04:53.1]}
2... c5 {[%clk 0:04:57.6]} 3. Bg2 {[%clk 0:04:52.3]} 3... Nc6 {[%clk 0:04:57]}
4. d3 {[%clk 0:04:51.6]} 4... Nf6 {[%clk 0:04:56]} 5. O-O {[%clk 0:04:50.5]}
5... g6 {[%clk 0:04:55.2]} 6. Nbd2 {[%clk 0:04:48.1]} 6... Bg7 {[%clk
0:04:54.6]} 7. e4 {[%clk 0:04:46.4]} 7... dxe4 {[%clk 0:04:51.1]} 8. dxe4 {[%clk
0:04:43.3]} 8... O-O {[%clk 0:04:46.8]} 9. c3 {[%clk 0:04:40.2]} 9... Bg4 {[%clk
0:04:44.9]} 10. Qc2 {[%clk 0:04:38.2]} 10... Rc8 {[%clk 0:04:40.8]} 11. h3
{[%clk 0:04:37.2]} 11... Be6 {[%clk 0:04:31.2]} 12. Kh2 {[%clk 0:04:32.8]} 12...
Qb6 {[%clk 0:04:22.9]} 13. b3 {[%clk 0:04:09.7]} 13... Rfd8 {[%clk 0:04:18.3]}
14. Bb2 {[%clk 0:04:08]} 14... Nd7 {[%clk 0:04:06.6]} 15. Rad1 {[%clk
0:04:05.4]} 15... Nde5 {[%clk 0:04:04.4]} 16. Nxe5 {[%clk 0:03:47.3]} 16... Nxe5
{[%clk 0:04:04.3]} 17. f4 {[%clk 0:03:44.4]} 17... Nd3 {[%clk 0:03:56.4]} 18.
Ba1 {[%clk 0:03:41.3]} 18... f5 {[%clk 0:03:05.4]} 19. c4 {[%clk 0:03:17.9]}
19... Bxa1 {[%clk 0:02:58.8]} 20. Rxa1 {[%clk 0:03:15.9]} 20... Nb4 {[%clk
0:02:43.7]} 21. Qb2 {[%clk 0:03:11.7]} 21... Rd3 {[%clk 0:02:41.3]} 22. Rae1
{[%clk 0:03:03.5]} 22... Rcd8 {[%clk 0:02:37.6]} 23. Re2 {[%clk 0:03:00.8]}
23... R8d4 {[%clk 0:02:20.7]} 24. Nf3 {[%clk 0:02:36.2]} 24... Rxe4 {[%clk
0:02:10.4]} 25. Rxe4 {[%clk 0:02:33.9]} 25... fxe4 {[%clk 0:02:10.3]} 26. Ng5
{[%clk 0:02:32.9]} 26... Bf5 {[%clk 0:01:28]} 27. Qe5 {[%clk 0:02:13.6]} 27...
Rd2 {[%clk 0:01:17.6]} 28. g4 {[%clk 0:02:04.8]} 28... Nd3 {[%clk 0:01:10.2]}
29. Qb8+ {[%clk 0:02:02.3]} 29... Kg7 {[%clk 0:01:07.9]} 30. gxf5 {[%clk
0:01:28.4]} 30... gxf5 {[%clk 0:01:06]} 31. Qe8 {[%clk 0:01:25.1]} 31... Qf6
{[%clk 0:00:58.9]} 32. Kh1 {[%clk 0:00:31.9]} 32... h6 {[%clk 0:00:52.4]} 33.
Nxe4 {[%clk 0:00:20.5]} 33... fxe4 {[%clk 0:00:51.3]} 34. Bxe4 {[%clk
0:00:19.4]} 34... Nf2+ {[%clk 0:00:40.8]} 35. Rxf2 {[%clk 0:00:13.4]} 35... Rxf2
{[%clk 0:00:40.7]} 36. Qh5 {[%clk 0:00:09.9]} 36... Rxf4 {[%clk 0:00:35.3]} 37.
Bd5 {[%clk 0:00:05]} 37... Rf1+ {[%clk 0:00:31.8]} 38. Kg2 {[%clk 0:00:03.3]}
38... Qf2# {[%clk 0:00:30]} 0-1